[Event "*** Titled Tuesday Blitz"]
[Site "Chess.com"]
[Date "2020.10.27"]
[Round "2"]
[White "Michaelson_11"]
[Black "esapunov"]
[Result "0-1"]
[WhiteElo "2117"]
[BlackElo "2649"]
[TimeControl "180+1"]
[EndTime "10:18:01 PDT"]
[Termination "esapunov won by resignation"]

1. e4 {[%clk 0:03:00.9]} 1... c5 {[%clk 0:02:59.7]} 2. Nf3 {[%clk 0:03:00.3]}
2... d6 {[%clk 0:03:00.1]} 3. d4 {[%clk 0:03:00.7]} 3... cxd4 {[%clk 0:03:00.5]}
4. Nxd4 {[%clk 0:03:01.6]} 4... Nf6 {[%clk 0:03:01]} 5. Nc3 {[%clk 0:03:00.1]}
5... Nc6 {[%clk 0:03:01.4]} 6. Bg5 {[%clk 0:02:58]} 6... e6 {[%clk 0:03:01.4]}
7. Qd2 {[%clk 0:02:52.9]} 7... a6 {[%clk 0:03:01.6]} 8. O-O-O {[%clk 0:02:49.6]}
8... h6 {[%clk 0:03:02]} 9. Be3 {[%clk 0:02:45.1]} 9... Nxd4 {[%clk 0:03:01.3]}
10. Qxd4 {[%clk 0:02:43.5]} 10... Qc7 {[%clk 0:03:00.4]} 11. f4 {[%clk
0:02:42.2]} 11... b5 {[%clk 0:02:56.9]} 12. Bxb5+ {[%clk 0:02:21.6]} 12... axb5
{[%clk 0:02:55.5]} 13. Nxb5 {[%clk 0:02:22.5]} 13... Qc6 {[%clk 0:02:53.1]} 14.
e5 {[%clk 0:01:44.9]} 14... Qxb5 {[%clk 0:02:27.7]} 15. exf6 {[%clk 0:01:43.1]}
15... g6 {[%clk 0:02:27.7]} 16. a3 {[%clk 0:01:16.2]} 16... d5 {[%clk
0:02:01.1]} 17. Rd3 {[%clk 0:01:11.1]} 17... Ra4 {[%clk 0:01:52.9]} 18. Qe5
{[%clk 0:01:02.8]} 18... Qc6 {[%clk 0:01:32.7]} 19. Rc3 {[%clk 0:00:18.1]} 19...
Rc4 {[%clk 0:01:31.9]} 20. Bd4 {[%clk 0:00:17.1]} 20... Rxc3 {[%clk 0:01:23.4]}
21. Bxc3 {[%clk 0:00:18]} 21... Bd6 {[%clk 0:01:23.3]} 22. Qe3 {[%clk
0:00:17.2]} 22... h5 {[%clk 0:01:15.7]} 23. g3 {[%clk 0:00:08.6]} 23... Bd7
{[%clk 0:01:08]} 24. Re1 {[%clk 0:00:07.5]} 24... Kf8 {[%clk 0:01:03.5]} 25. h3
{[%clk 0:00:06.8]} 25... Kg8 {[%clk 0:01:02.4]} 26. g4 {[%clk 0:00:05.6]} 26...
hxg4 {[%clk 0:01:02.2]} 27. hxg4 {[%clk 0:00:06.5]} 27... Qc8 {[%clk 0:00:52.9]}
28. f5 {[%clk 0:00:06.6]} 28... exf5 {[%clk 0:00:50.9]} 29. gxf5 {[%clk
0:00:04]} 29... Bxf5 {[%clk 0:00:51]} 30. Qd4 {[%clk 0:00:03.5]} 30... Be6
{[%clk 0:00:49.2]} 31. Qe3 {[%clk 0:00:02.2]} 31... Rh5 {[%clk 0:00:48.2]} 32.
Kb1 {[%clk 0:00:02.4]} 32... Kh7 {[%clk 0:00:46.8]} 33. Qf3 {[%clk 0:00:02.6]}
33... Qd7 {[%clk 0:00:43.2]} 34. Rh1 {[%clk 0:00:02.6]} 34... Rxh1+ {[%clk
0:00:41.2]} 35. Qxh1+ {[%clk 0:00:03.5]} 35... Kg8 {[%clk 0:00:39.4]} 36. Qh6
{[%clk 0:00:03.8]} 36... Bf8 {[%clk 0:00:38.9]} 37. Qf4 {[%clk 0:00:03.9]} 37...
Bf5 {[%clk 0:00:32.7]} 38. Qb8 {[%clk 0:00:03.4]} 38... Qd6 {[%clk 0:00:31.5]}
39. Qe8 {[%clk 0:00:02.4]} 39... Qe6 {[%clk 0:00:27.1]} 40. Qd8 {[%clk
0:00:02.1]} 40... Qd6 {[%clk 0:00:26.8]} 41. Bb4 {[%clk 0:00:01.8]} 41... Qxd8
{[%clk 0:00:26.4]} 0-1

[Event "*** Titled Tuesday Blitz"]
[Site "Chess.com"]
[Date "2020.10.27"]
[Round "2"]
[White "GoltsevDmitry2000"]
[Black "Kotofeyca"]
[Result "1-0"]
[WhiteElo "2695"]
[BlackElo "2358"]
[TimeControl "180+1"]
[EndTime "10:18:02 PDT"]
[Termination "GoltsevDmitry2000 won by checkmate"]

1. e3 {[%clk 0:02:58.8]} 1... d5 {[%clk 0:02:59.5]} 2. b3 {[%clk 0:02:57.9]}
2... c6 {[%clk 0:02:58.9]} 3. Bb2 {[%clk 0:02:58.4]} 3... Nf6 {[%clk 0:02:59.2]}
4. Nf3 {[%clk 0:02:58.7]} 4... Bg4 {[%clk 0:02:59.1]} 5. Be2 {[%clk 0:02:58.8]}
5... e6 {[%clk 0:02:59.4]} 6. h3 {[%clk 0:02:57.7]} 6... Bh5 {[%clk 0:02:59.2]}
7. O-O {[%clk 0:02:57.9]} 7... Nbd7 {[%clk 0:02:59.8]} 8. d3 {[%clk 0:02:58.1]}
8... Bc5 {[%clk 0:02:58.1]} 9. Nbd2 {[%clk 0:02:57.8]} 9... Qe7 {[%clk
0:02:58.2]} 10. Ne5 {[%clk 0:02:56.6]} 10... Bxe2 {[%clk 0:02:55.4]} 11. Qxe2
{[%clk 0:02:57.5]} 11... Nxe5 {[%clk 0:02:49.7]} 12. Bxe5 {[%clk 0:02:58.4]}
12... Bd6 {[%clk 0:02:50.4]} 13. Bb2 {[%clk 0:02:51.9]} 13... Ba3 {[%clk
0:02:50]} 14. Be5 {[%clk 0:02:34.9]} 14... Bd6 {[%clk 0:02:49.4]} 15. f4 {[%clk
0:02:34.3]} 15... Bxe5 {[%clk 0:02:44.1]} 16. fxe5 {[%clk 0:02:35.2]} 16... Nd7
{[%clk 0:02:44.7]} 17. d4 {[%clk 0:02:35.7]} 17... f5 {[%clk 0:02:18.6]} 18.
exf6 {[%clk 0:02:32.9]} 18... Nxf6 {[%clk 0:02:18.4]} 19. e4 {[%clk 0:02:33.2]}
19... Qb4 {[%clk 0:01:54.2]} 20. Qe3 {[%clk 0:02:16.1]} 20... O-O {[%clk
0:01:53]} 21. c3 {[%clk 0:02:15.4]} 21... Qa5 {[%clk 0:01:43.1]} 22. e5 {[%clk
0:01:54.9]} 22... Nd7 {[%clk 0:01:42.2]} 23. Nf3 {[%clk 0:01:53.3]} 23... h6
{[%clk 0:01:32.9]} 24. Nh4 {[%clk 0:01:51.3]} 24... Rxf1+ {[%clk 0:01:29.7]} 25.
Rxf1 {[%clk 0:01:52.2]} 25... Qxa2 {[%clk 0:01:22.9]} 26. Ng6 {[%clk 0:01:46.4]}
26... Qc2 {[%clk 0:01:15.5]} 27. Qg3 {[%clk 0:01:24.1]} 27... Nf8 {[%clk
0:01:07.7]} 28. Ne7+ {[%clk 0:01:21.9]} 28... Kh7 {[%clk 0:01:06.7]} 29. Rf7
{[%clk 0:01:20.9]} 29... Ng6 {[%clk 0:00:59.6]} 30. h4 {[%clk 0:01:05.8]} 30...
a5 {[%clk 0:00:42.9]} 31. Kh2 {[%clk 0:00:56.6]} 31... Qe4 {[%clk 0:00:22.4]}
32. h5 {[%clk 0:00:41.1]} 32... Qh4+ {[%clk 0:00:21.8]} 33. Qxh4 {[%clk
0:00:41.4]} 33... Nxh4 {[%clk 0:00:22.7]} 34. g4 {[%clk 0:00:42]} 34... Nf3+
{[%clk 0:00:21.5]} 35. Rxf3 {[%clk 0:00:35.4]} 35... a4 {[%clk 0:00:21.3]} 36.
bxa4 {[%clk 0:00:35.5]} 36... Rxa4 {[%clk 0:00:21.5]} 37. Ng6 {[%clk 0:00:35.5]}
37... Ra8 {[%clk 0:00:21.1]} 38. Rf7 {[%clk 0:00:35.4]} 38... Rb8 {[%clk
0:00:20.9]} 39. Re7 {[%clk 0:00:35.8]} 39... b6 {[%clk 0:00:20.4]} 40. Rxe6
{[%clk 0:00:35.9]} 40... c5 {[%clk 0:00:21.3]} 41. Rd6 {[%clk 0:00:34.7]} 41...
cxd4 {[%clk 0:00:21.5]} 42. cxd4 {[%clk 0:00:35.6]} 42... b5 {[%clk 0:00:22.4]}
43. e6 {[%clk 0:00:32]} 43... b4 {[%clk 0:00:23.3]} 44. e7 {[%clk 0:00:31]}
44... b3 {[%clk 0:00:17.7]} 45. Rd8 {[%clk 0:00:31.2]} 45... b2 {[%clk
0:00:17.6]} 46. Rxb8 {[%clk 0:00:30.2]} 46... b1=Q {[%clk 0:00:17.4]} 47. Rh8#
{[%clk 0:00:30.4]} 1-0

[Event "*** Titled Tuesday Blitz"]
[Site "Chess.com"]
[Date "2020.10.27"]
[Round "2"]
[White "GukeshDommaraju"]
[Black "Ajedrez_con_German"]
[Result "1-0"]
[WhiteElo "2823"]
[BlackElo "2539"]
[TimeControl "180+1"]
[EndTime "10:18:04 PDT"]
[Termination "GukeshDommaraju won on time"]

1. c4 {[%clk 0:03:00.9]} 1... e6 {[%clk 0:02:59.3]} 2. Nf3 {[%clk 0:02:58.7]}
2... d5 {[%clk 0:02:59.1]} 3. e3 {[%clk 0:02:59.2]} 3... Nf6 {[%clk 0:02:59.4]}
4. Nc3 {[%clk 0:02:59.5]} 4... Be7 {[%clk 0:02:59.7]} 5. b3 {[%clk 0:02:59.3]}
5... O-O {[%clk 0:02:56.5]} 6. Bb2 {[%clk 0:02:59.5]} 6... b6 {[%clk 0:02:56.3]}
7. cxd5 {[%clk 0:02:57.1]} 7... Nxd5 {[%clk 0:02:56.1]} 8. Nxd5 {[%clk
0:02:56.7]} 8... Qxd5 {[%clk 0:02:55]} 9. Bc4 {[%clk 0:02:55.4]} 9... Qd8 {[%clk
0:02:54.8]} 10. Qc2 {[%clk 0:02:43.5]} 10... Bb7 {[%clk 0:02:46.8]} 11. h4
{[%clk 0:02:38]} 11... Bf6 {[%clk 0:02:22.1]} 12. d4 {[%clk 0:01:57]} 12... Nd7
{[%clk 0:02:10.8]} 13. Bd3 {[%clk 0:01:52]} 13... h6 {[%clk 0:02:04]} 14. Ng5
{[%clk 0:01:41.5]} 14... Bxg5 {[%clk 0:01:59]} 15. hxg5 {[%clk 0:01:40.9]} 15...
Qxg5 {[%clk 0:01:59.9]} 16. Qxc7 {[%clk 0:01:23.8]} 16... Qxg2 {[%clk
0:01:44.8]} 17. Rh2 {[%clk 0:01:23.7]} 17... Qc6 {[%clk 0:00:32.7]} 18. Rc1
{[%clk 0:01:23]} 18... Qxc7 {[%clk 0:00:26.8]} 19. Rxc7 {[%clk 0:01:22.4]} 19...
Bc8 {[%clk 0:00:26.2]} 20. Ba3 {[%clk 0:01:22.2]} 20... Re8 {[%clk 0:00:24.1]}
21. Be4 {[%clk 0:01:22]} 21... Rb8 {[%clk 0:00:23.8]} 22. Bc6 {[%clk 0:01:21.9]}
22... Rd8 {[%clk 0:00:20.6]} 23. Be7 {[%clk 0:01:21.3]} 23... Re8 {[%clk
0:00:21]} 24. Bxd7 {[%clk 0:01:17.5]} 24... Rxe7 {[%clk 0:00:20.9]} 25. Rxc8+
{[%clk 0:01:17.7]} 25... Rxc8 {[%clk 0:00:20.7]} 26. Bxc8 {[%clk 0:01:18.6]}
26... Rc7 {[%clk 0:00:19.4]} 27. Ba6 {[%clk 0:01:18.6]} 27... Rc2 {[%clk
0:00:19.6]} 28. a4 {[%clk 0:01:17.1]} 28... f5 {[%clk 0:00:16.7]} 29. Bd3 {[%clk
0:01:13.5]} 29... Rb2 {[%clk 0:00:16.5]} 30. Bc4 {[%clk 0:01:13.4]} 30... Kf7
{[%clk 0:00:16.1]} 31. Rh3 {[%clk 0:01:04.5]} 31... Kf6 {[%clk 0:00:15.8]} 32.
Rf3 {[%clk 0:00:58.1]} 32... g5 {[%clk 0:00:15.6]} 33. e4 {[%clk 0:00:56]} 33...
g4 {[%clk 0:00:15.3]} 34. Rg3 {[%clk 0:00:56.3]} 34... h5 {[%clk 0:00:15.6]} 35.
e5+ {[%clk 0:00:55.6]} 35... Kg5 {[%clk 0:00:15.7]} 36. Bxe6 {[%clk 0:00:55]}
36... f4 {[%clk 0:00:13.3]} 37. Rd3 {[%clk 0:00:50.3]} 37... f3 {[%clk
0:00:12.3]} 38. d5 {[%clk 0:00:37.1]} 38... Re2+ {[%clk 0:00:11.7]} 39. Kf1
{[%clk 0:00:24.3]} 39... h4 {[%clk 0:00:07.3]} 40. d6 {[%clk 0:00:22.4]} 40...
h3 {[%clk 0:00:05.4]} 41. d7 {[%clk 0:00:22.2]} 1-0

[Event "*** Titled Tuesday Blitz"]
[Site "Chess.com"]
[Date "2020.10.27"]
[Round "2"]
[White "rasmussvane"]
[Black "ExtremeLearner"]
[Result "1-0"]
[WhiteElo "2873"]
[BlackElo "2369"]
[TimeControl "180+1"]
[EndTime "10:18:06 PDT"]
[Termination "rasmussvane won by resignation"]

1. Nf3 {[%clk 0:03:00.9]} 1... d5 {[%clk 0:02:58.2]} 2. g3 {[%clk 0:03:01]} 2...
c6 {[%clk 0:02:47.7]} 3. Bg2 {[%clk 0:03:01.1]} 3... g6 {[%clk 0:02:48]} 4. O-O
{[%clk 0:03:00.5]} 4... Bg7 {[%clk 0:02:48.9]} 5. c4 {[%clk 0:02:58.2]} 5...
dxc4 {[%clk 0:02:48.5]} 6. a4 {[%clk 0:02:53.5]} 6... Nf6 {[%clk 0:02:34.3]} 7.
Na3 {[%clk 0:02:53.2]} 7... Be6 {[%clk 0:02:30.4]} 8. Qc2 {[%clk 0:02:49.1]}
8... O-O {[%clk 0:02:19.3]} 9. Nxc4 {[%clk 0:02:48.8]} 9... Na6 {[%clk
0:02:03.7]} 10. d3 {[%clk 0:02:35.1]} 10... Nb4 {[%clk 0:01:57.9]} 11. Qd2
{[%clk 0:02:35.4]} 11... a5 {[%clk 0:01:57.1]} 12. Qf4 {[%clk 0:02:20.5]} 12...
Nfd5 {[%clk 0:01:37.1]} 13. Qh4 {[%clk 0:02:20.3]} 13... h5 {[%clk 0:01:09.1]}
14. Bd2 {[%clk 0:02:07.5]} 14... Nc2 {[%clk 0:00:49.7]} 15. Rac1 {[%clk
0:02:05.9]} 15... Ndb4 {[%clk 0:00:50.2]} 16. Bc3 {[%clk 0:01:55.3]} 16... Bxc4
{[%clk 0:00:42.4]} 17. Qxc4 {[%clk 0:01:53.6]} 17... Qd5 {[%clk 0:00:28]} 18.
Qxd5 {[%clk 0:01:41.6]} 18... cxd5 {[%clk 0:00:28.9]} 19. d4 {[%clk 0:01:41.9]}
19... Rac8 {[%clk 0:00:24.9]} 20. e3 {[%clk 0:01:35.2]} 20... e6 {[%clk
0:00:17.6]} 21. Rfd1 {[%clk 0:01:32.4]} 21... Rc7 {[%clk 0:00:15.4]} 22. Rd2
{[%clk 0:01:31.1]} 22... Rfc8 {[%clk 0:00:15.8]} 23. Rdxc2 {[%clk 0:01:30.9]}
23... Nxc2 {[%clk 0:00:16.7]} 24. Rxc2 {[%clk 0:01:31.8]} 24... b6 {[%clk
0:00:17.4]} 25. Bf1 {[%clk 0:01:29.7]} 25... Bf8 {[%clk 0:00:17]} 26. Nd2 {[%clk
0:01:21]} 26... Bb4 {[%clk 0:00:16.6]} 27. Nb1 {[%clk 0:01:21.3]} 27... Kg7
{[%clk 0:00:14.1]} 28. Ba6 {[%clk 0:01:20.2]} 28... Rb8 {[%clk 0:00:13.4]} 29.
Bd3 {[%clk 0:01:19.7]} 29... Rbc8 {[%clk 0:00:13.3]} 30. Kf1 {[%clk 0:01:19.7]}
30... Be7 {[%clk 0:00:10.7]} 31. Ke2 {[%clk 0:01:19.5]} 31... h4 {[%clk
0:00:11.1]} 32. g4 {[%clk 0:01:19]} 32... h3 {[%clk 0:00:11.2]} 33. f4 {[%clk
0:01:17.5]} 33... g5 {[%clk 0:00:10.6]} 34. f5 {[%clk 0:01:14.9]} 34... Bd6
{[%clk 0:00:10.1]} 35. Kf3 {[%clk 0:01:14.8]} 35... Rh8 {[%clk 0:00:08.1]} 36.
e4 {[%clk 0:01:12.4]} 36... dxe4+ {[%clk 0:00:08.2]} 37. Bxe4 {[%clk 0:01:12.2]}
37... Bf4 {[%clk 0:00:07.9]} 38. d5+ {[%clk 0:01:11.7]} 38... e5 {[%clk
0:00:08.4]} 39. Na3 {[%clk 0:01:10.8]} 39... Rd7 {[%clk 0:00:08.2]} 40. Nc4
{[%clk 0:01:09.3]} 40... f6 {[%clk 0:00:07.3]} 41. Nxb6 {[%clk 0:01:06.9]} 41...
Rb7 {[%clk 0:00:07.8]} 42. Nc4 {[%clk 0:01:05.6]} 42... Rb3 {[%clk 0:00:08.3]}
43. Nxa5 {[%clk 0:01:05.2]} 43... Rbb8 {[%clk 0:00:07.7]} 44. Nc6 {[%clk
0:01:04.6]} 44... Ra8 {[%clk 0:00:05.5]} 45. a5 {[%clk 0:01:04.6]} 45... Rh4
{[%clk 0:00:06.1]} 46. b4 {[%clk 0:01:03.9]} 46... Rah8 {[%clk 0:00:06.3]} 47.
d6 {[%clk 0:00:48.5]} 47... Rxg4 {[%clk 0:00:06.1]} 48. Kxg4 {[%clk 0:00:48.7]}
48... Rh4+ {[%clk 0:00:06.7]} 49. Kf3 {[%clk 0:00:49.3]} 49... g4+ {[%clk
0:00:07.6]} 50. Ke2 {[%clk 0:00:49.8]} 50... Bxh2 {[%clk 0:00:05.2]} 51. d7
{[%clk 0:00:50.1]} 51... Rh8 {[%clk 0:00:04.8]} 52. d8=Q {[%clk 0:00:49.6]}
52... Rxd8 {[%clk 0:00:05.7]} 53. Nxd8 {[%clk 0:00:50.5]} 53... Bg3 {[%clk
0:00:05.7]} 54. a6 {[%clk 0:00:49.4]} 1-0

[Event "*** Titled Tuesday Blitz"]
[Site "Chess.com"]
[Date "2020.10.27"]
[Round "2"]
[White "Arfan48"]
[Black "parintele_chess"]
[Result "1-0"]
[WhiteElo "2422"]
[BlackElo "2146"]
[TimeControl "180+1"]
[EndTime "10:18:07 PDT"]
[Termination "Arfan48 won by checkmate"]

1. e4 {[%clk 0:03:00.9]} 1... e6 {[%clk 0:02:59.1]} 2. Nf3 {[%clk 0:03:00.9]}
2... d5 {[%clk 0:03:00]} 3. Nc3 {[%clk 0:03:01.4]} 3... d4 {[%clk 0:02:59.6]} 4.
Ne2 {[%clk 0:03:01.1]} 4... c5 {[%clk 0:03:00.5]} 5. c3 {[%clk 0:03:01.6]} 5...
Nc6 {[%clk 0:02:59.6]} 6. cxd4 {[%clk 0:03:01.9]} 6... cxd4 {[%clk 0:02:59]} 7.
Qa4 {[%clk 0:03:02.2]} 7... Bd7 {[%clk 0:02:58.7]} 8. Nexd4 {[%clk 0:02:55.4]}
8... Nf6 {[%clk 0:02:58]} 9. Nxc6 {[%clk 0:02:21.2]} 9... Bxc6 {[%clk
0:02:56.4]} 10. Bb5 {[%clk 0:02:21.1]} 10... Rc8 {[%clk 0:02:47.1]} 11. Bxc6+
{[%clk 0:01:42.9]} 11... Rxc6 {[%clk 0:02:41]} 12. Ne5 {[%clk 0:01:33.7]} 12...
Qb6 {[%clk 0:02:01.2]} 13. Nxc6 {[%clk 0:01:30.2]} 13... bxc6 {[%clk 0:02:02.1]}
14. O-O {[%clk 0:01:25.1]} 14... Bc5 {[%clk 0:02:01]} 15. d3 {[%clk 0:00:57.5]}
15... O-O {[%clk 0:01:52.1]} 16. Qc2 {[%clk 0:00:50.7]} 16... Bd4 {[%clk
0:01:49.6]} 17. Rb1 {[%clk 0:00:48.8]} 17... a5 {[%clk 0:01:41.6]} 18. Bg5
{[%clk 0:00:47.1]} 18... Nd7 {[%clk 0:01:34.2]} 19. Kh1 {[%clk 0:00:37.3]} 19...
Ne5 {[%clk 0:01:23.8]} 20. Bf4 {[%clk 0:00:32.1]} 20... Ng4 {[%clk 0:01:22.6]}
21. Bg3 {[%clk 0:00:31.6]} 21... f5 {[%clk 0:01:17.9]} 22. h3 {[%clk 0:00:29.8]}
22... f4 {[%clk 0:01:14.8]} 23. hxg4 {[%clk 0:00:25]} 23... fxg3 {[%clk
0:01:14.6]} 24. fxg3 {[%clk 0:00:24.3]} 24... Qd8 {[%clk 0:00:58.6]} 25. Qxc6
{[%clk 0:00:11.2]} 25... Rf6 {[%clk 0:00:58.1]} 26. g5 {[%clk 0:00:08.3]} 26...
Rg6 {[%clk 0:00:48.5]} 27. Rf3 {[%clk 0:00:03.3]} 27... Rxg5 {[%clk 0:00:29.7]}
28. Qxe6+ {[%clk 0:00:02.6]} 28... Kh8 {[%clk 0:00:29.9]} 29. g4 {[%clk
0:00:03]} 29... Rg6 {[%clk 0:00:27.5]} 30. Rbf1 {[%clk 0:00:02.4]} 30... Bf6
{[%clk 0:00:08.5]} 31. Qf5 {[%clk 0:00:02.2]} 31... Rh6+ {[%clk 0:00:08.5]} 32.
Rh3 {[%clk 0:00:02.5]} 32... Rxh3+ {[%clk 0:00:08.2]} 33. gxh3 {[%clk
0:00:03.4]} 33... Qxd3 {[%clk 0:00:07.4]} 34. Qc8+ {[%clk 0:00:03.5]} 34... Bd8
{[%clk 0:00:07.6]} 35. Rf8# {[%clk 0:00:02.9]} 1-0

[Event "*** Titled Tuesday Blitz"]
[Site "Chess.com"]
[Date "2020.10.27"]
[Round "2"]
[White "KuzubovYuriy"]
[Black "TheMagnet"]
[Result "1-0"]
[WhiteElo "2895"]
[BlackElo "2585"]
[TimeControl "180+1"]
[EndTime "10:18:10 PDT"]
[Termination "KuzubovYuriy won by checkmate"]

1. d4 {[%clk 0:03:00.9]} 1... Nf6 {[%clk 0:03:00.2]} 2. c4 {[%clk 0:02:59]} 2...
c5 {[%clk 0:03:00.1]} 3. d5 {[%clk 0:02:57.8]} 3... e6 {[%clk 0:03:00.7]} 4. Nc3
{[%clk 0:02:57.2]} 4... exd5 {[%clk 0:03:01.1]} 5. cxd5 {[%clk 0:02:57.3]} 5...
d6 {[%clk 0:03:01.8]} 6. e4 {[%clk 0:02:57]} 6... g6 {[%clk 0:03:02.4]} 7. f4
{[%clk 0:02:56]} 7... Bg7 {[%clk 0:02:59.8]} 8. Bb5+ {[%clk 0:02:55.8]} 8...
Nbd7 {[%clk 0:03:00.2]} 9. e5 {[%clk 0:02:46.3]} 9... dxe5 {[%clk 0:03:01.1]}
10. fxe5 {[%clk 0:02:45.4]} 10... Nh5 {[%clk 0:03:01.8]} 11. e6 {[%clk
0:02:41.3]} 11... Qh4+ {[%clk 0:03:01.7]} 12. g3 {[%clk 0:02:37.2]} 12... Nxg3
{[%clk 0:03:00.1]} 13. hxg3 {[%clk 0:02:17.9]} 13... Bxc3+ {[%clk 0:03:00]} 14.
bxc3 {[%clk 0:02:12.6]} 14... Qxh1 {[%clk 0:03:00.1]} 15. exd7+ {[%clk
0:01:29.7]} 15... Bxd7 {[%clk 0:03:01]} 16. Bxd7+ {[%clk 0:01:29.5]} 16... Kxd7
{[%clk 0:03:01.9]} 17. Kf1 {[%clk 0:01:25.4]} 17... Qe4 {[%clk 0:02:24.7]} 18.
Bf4 {[%clk 0:01:00]} 18... Qc4+ {[%clk 0:01:51]} 19. Kf2 {[%clk 0:00:43.1]}
19... Rhe8 {[%clk 0:01:50.1]} 20. Qb3 {[%clk 0:00:36.4]} 20... Qxb3 {[%clk
0:01:42.7]} 21. axb3 {[%clk 0:00:36.4]} 21... a6 {[%clk 0:01:23.3]} 22. Ne2
{[%clk 0:00:33.5]} 22... g5 {[%clk 0:01:14.9]} 23. Bxg5 {[%clk 0:00:25.4]} 23...
Re5 {[%clk 0:01:14.9]} 24. Bf4 {[%clk 0:00:14.9]} 24... Rxd5 {[%clk 0:01:14.6]}
25. Rh1 {[%clk 0:00:13.5]} 25... h5 {[%clk 0:01:14.7]} 26. c4 {[%clk 0:00:13]}
26... Rf5 {[%clk 0:01:13.4]} 27. Nc3 {[%clk 0:00:12.7]} 27... Re8 {[%clk
0:01:06]} 28. Kf3 {[%clk 0:00:11.7]} 28... Kc6 {[%clk 0:00:59.4]} 29. Nd5 {[%clk
0:00:11.4]} 29... b5 {[%clk 0:00:49.3]} 30. Ne3 {[%clk 0:00:11.3]} 30... Rf6
{[%clk 0:00:46.2]} 31. Rxh5 {[%clk 0:00:11]} 31... Rfe6 {[%clk 0:00:38]} 32. Nd5
{[%clk 0:00:09.1]} 32... Re1 {[%clk 0:00:31.6]} 33. Rh6+ {[%clk 0:00:08.3]}
33... R8e6 {[%clk 0:00:31.8]} 34. Rh8 {[%clk 0:00:08.3]} 34... bxc4 {[%clk
0:00:23]} 35. bxc4 {[%clk 0:00:09.2]} 35... Re8 {[%clk 0:00:18.2]} 36. Rh7
{[%clk 0:00:09.4]} 36... Rf8 {[%clk 0:00:10.8]} 37. Rh6+ {[%clk 0:00:08.9]}
37... Kb7 {[%clk 0:00:10]} 38. Rb6+ {[%clk 0:00:08]} 38... Ka7 {[%clk
0:00:10.4]} 39. Rc6 {[%clk 0:00:08.4]} 39... Rfe8 {[%clk 0:00:04.3]} 40. Rc7+
{[%clk 0:00:08.7]} 40... Ka8 {[%clk 0:00:04]} 41. Nb6+ {[%clk 0:00:08.4]} 41...
Kb8 {[%clk 0:00:04.6]} 42. Re7+ {[%clk 0:00:08.5]} 42... Re5 {[%clk 0:00:02.6]}
43. Bxe5# {[%clk 0:00:08.8]} 1-0

[Event "*** Titled Tuesday Blitz"]
[Site "Chess.com"]
[Date "2020.10.27"]
[Round "2"]
[White "Korchmar_Vasiliy"]
[Black "GMBenjaminBok"]
[Result "0-1"]
[WhiteElo "2603"]
[BlackElo "2942"]
[TimeControl "180+1"]
[EndTime "10:18:11 PDT"]
[Termination "GMBenjaminBok won on time"]

1. d4 {[%clk 0:03:00.9]} 1... d5 {[%clk 0:02:57.4]} 2. Nf3 {[%clk 0:03:01.1]}
2... Nf6 {[%clk 0:02:57]} 3. Bf4 {[%clk 0:03:01.4]} 3... c5 {[%clk 0:02:56.5]}
4. e3 {[%clk 0:03:01.8]} 4... Nc6 {[%clk 0:02:56.4]} 5. Nbd2 {[%clk 0:03:02.2]}
5... cxd4 {[%clk 0:02:52.3]} 6. exd4 {[%clk 0:03:02.2]} 6... Qb6 {[%clk
0:02:53]} 7. Nb3 {[%clk 0:03:01.5]} 7... Bf5 {[%clk 0:02:53.6]} 8. Bd3 {[%clk
0:02:55.6]} 8... Bxd3 {[%clk 0:02:53.1]} 9. Qxd3 {[%clk 0:02:56.5]} 9... e6
{[%clk 0:02:53.7]} 10. O-O {[%clk 0:02:49.1]} 10... a5 {[%clk 0:02:53.7]} 11. a4
{[%clk 0:02:45.9]} 11... Qa6 {[%clk 0:02:43.5]} 12. Qb5 {[%clk 0:02:41.6]} 12...
Be7 {[%clk 0:02:42.6]} 13. c3 {[%clk 0:02:14.5]} 13... O-O {[%clk 0:02:40.2]}
14. Bg5 {[%clk 0:02:09.9]} 14... Ne4 {[%clk 0:02:08.4]} 15. Bxe7 {[%clk
0:02:06.3]} 15... Nxe7 {[%clk 0:02:09.3]} 16. Ne5 {[%clk 0:01:36.8]} 16... Rfd8
{[%clk 0:00:57.2]} 17. Nc5 {[%clk 0:00:47.3]} 17... Nxc5 {[%clk 0:00:26]} 18.
Qxc5 {[%clk 0:00:45.8]} 18... Nf5 {[%clk 0:00:20.4]} 19. Rfe1 {[%clk 0:00:38.5]}
19... Rac8 {[%clk 0:00:18.7]} 20. Qa3 {[%clk 0:00:32]} 20... Nd6 {[%clk
0:00:19.1]} 21. Re3 {[%clk 0:00:25]} 21... f6 {[%clk 0:00:18.9]} 22. Ng4 {[%clk
0:00:17.3]} 22... Nc4 {[%clk 0:00:18.8]} 23. Nxf6+ {[%clk 0:00:17.2]} 23... gxf6
{[%clk 0:00:16.9]} 24. Rg3+ {[%clk 0:00:17.7]} 24... Kf7 {[%clk 0:00:16]} 25.
Qb3 {[%clk 0:00:18.4]} 25... Rg8 {[%clk 0:00:14.6]} 26. Rh3 {[%clk 0:00:14.4]}
26... Rg7 {[%clk 0:00:13.5]} 27. Qd1 {[%clk 0:00:14.9]} 27... Rcg8 {[%clk
0:00:12.1]} 28. Qh5+ {[%clk 0:00:15.4]} 28... Ke7 {[%clk 0:00:12.4]} 29. Rg3
{[%clk 0:00:14.7]} 29... Nxb2 {[%clk 0:00:10]} 30. Re1 {[%clk 0:00:13.8]} 30...
Qd6 {[%clk 0:00:05.8]} 31. Rb1 {[%clk 0:00:11.2]} 31... Qa3 {[%clk 0:00:03.2]}
32. Re1 {[%clk 0:00:08.8]} 32... Nd3 {[%clk 0:00:02.3]} 33. Rxd3 {[%clk
0:00:07.5]} 33... Rxg2+ {[%clk 0:00:03]} 34. Kf1 {[%clk 0:00:03]} 34... Rg1+
{[%clk 0:00:02]} 35. Ke2 {[%clk 0:00:03.7]} 35... Qa2+ {[%clk 0:00:02.1]} 36.
Rd2 {[%clk 0:00:04]} 36... Qc4+ {[%clk 0:00:02.6]} 37. Kd1 {[%clk 0:00:02.9]}
37... Qxa4+ {[%clk 0:00:02.5]} 38. Ke2 {[%clk 0:00:03.1]} 38... Qb5+ {[%clk
0:00:03.1]} 0-1